bitfinex-derivatives/quotes_SOLF0:USTF0_20251230
["timestamp","ask_amount","ask_price","bid_price","bid_amount"]
[1767119145896,95.0,124.42,124.38,16.86212509]
[1767119145897,0.0541279,124.41,124.38,16.86212509]
[1767119148379,0.0041279,124.41,124.38,16.86212509]
[1767119148577,15.27216322,124.45,124.38,16.86212509]
[1767119148578,95.0,124.44,124.38,16.86212509]
[1767119149678,0.05376998,124.42,124.38,16.86212509]
[1767119171623,7.29466998,124.42,124.38,16.86212509]
[1767119173416,0.00376998,124.42,124.38,16.86212509]
[1767119175420,0.00376998,124.42,124.38,24.10502509]
[1767119175921,0.00376998,124.42,124.39,12.11]
[1767119195931,2.23629951,124.45,124.41,10.77]
[1767119196138,95.02,124.46,124.41,10.77]
[1767119196333,97.25629951,124.46,124.41,10.77]
[1767119196532,2.23629951,124.45,124.41,10.77]
[1767119197039,0.06168129,124.44,124.42,0.05215509]
[1767119199340,0.00168129,124.44,124.42,10.82215509]
[1767119203639,9.47319951,124.49,124.42,10.82215509]
[1767119203839,9.47319951,124.49,124.42,10.77]
[1767119204340,9.47319951,124.49,124.43,10.77]
[1767119204542,2.23629951,124.5,124.43,10.77]
[1767119204851,0.05313667,124.48,124.45,10.8242822]
[1767119220762,95.0,124.51,124.46,8.66]
[1767119220964,97.23629951,124.51,124.46,8.66]
[1767119221264,2.23629951,124.5,124.46,8.66]
[1767119221764,2.23629951,124.5,124.47,0.05233434]
[1767119223875,95.0,124.52,124.47,0.05233434]
[1767119224168,2.23629951,124.51,124.47,0.05233434]
[1767119224566,95.0,124.52,124.47,0.05233434]
[1767119224769,2.23629951,124.51,124.47,0.05233434]
[1767119225172,112.5054,124.57,124.47,0.05233434]
[1767119225173,2.23629951,124.54,124.47,7.86233434]
[1767119225366,2.23629951,124.54,124.49,0.05476331]
[1767119225872,2.23629951,124.52,124.47,7.81]
[1767119226260,38.83259609,124.62,124.47,7.81]
[1767119226463,2.23629951,124.53,124.47,7.81]
[1767119226870,0.05106034,124.51,124.49,0.05511924]
[1767119229478,2.28735985,124.51,124.46,7.81]
[1767119229673,2.23629951,124.5,124.46,7.81]
[1767119230478,2.23629951,124.49,124.46,7.81]
[1767119230680,2.23629951,124.49,124.47,0.06149297]
[1767119230877,2.23629951,124.49,124.44,7.81]
[1767119231176,207.5151,124.53,124.44,7.81]
[1767119231177,2.23629951,124.47,124.44,7.81]
[1767119231968,2.29549426,124.47,124.44,7.86326894]
[1767119233277,2.29549426,124.47,124.42,15.0502]
[1767119234388,2.29549426,124.47,124.43,0.05938773]
[1767119235878,2.23629951,124.46,124.43,0.05938773]
[1767119236079,0.05919475,124.47,124.43,0.05938773]
[1767119236979,0.05919475,124.47,124.43,13.80928773]
[1767119238088,0.05919475,124.47,124.43,6.56938773]
[1767119248792,3.55143682,124.47,124.37,6.51]
[1767119248984,98.49224207,124.47,124.37,6.51]
[1767119249801,98.49224207,124.47,124.36,14.77793059]
[1767119249802,0.00454416,124.43,124.41,6.5649144]
[1767119252800,0.00454416,124.43,124.41,0.0549144]
[1767119254499,0.00454416,124.43,124.41,6.5649144]
[1767119255012,95.0,124.5,124.41,6.5649144]
[1767119255215,95.0,124.5,124.41,6.51]
[1767119255806,0.05614827,124.47,124.44,0.05914322]
[1767119256407,0.05614827,124.47,124.36,3.49224207]
[1767119256408,3.54839034,124.47,124.36,3.49224207]
[1767119256709,116.08084207,124.47,124.36,3.49224207]
[1767119256912,95.0,124.46,124.36,3.49224207]
[1767119257208,102.2388,124.46,124.36,3.49224207]
[1767119257400,0.06027553,124.42,124.4,0.0545833]
[1767119263205,0.06027553,124.42,124.35,3.49224207]
[1767119264117,0.06027553,124.42,124.37,0.05198032]
[1767119265220,0.06027553,124.42,124.37,6.56198032]
[1767119265417,8.93107553,124.42,124.37,6.56198032]
[1767119267325,1.69027553,124.42,124.37,6.56198032]
[1767119272334,0.06027553,124.42,124.37,6.56198032]
[1767119276738,0.00027553,124.42,124.37,6.56198032]
[1767119279138,0.85027553,124.42,124.37,0.05198032]
[1767119279525,0.85,124.41,124.37,0.05198032]
[1767119280531,7.2418,124.4,124.37,0.05198032]
[1767119281128,0.75,124.38,124.33,5.78]
[1767119281327,95.79,124.38,124.33,5.78]
[1767119281727,7.9437,124.37,124.29,5.78]
[1767119282123,0.06053453,124.34,124.32,0.05324389]
[1767119283134,0.00053453,124.34,124.32,5.83324389]
[1767119289060,0.00053453,124.34,124.3,5.02]
[1767119290244,0.00053453,124.34,124.31,5.07705191]
[1767119291047,0.30053453,124.34,124.25,1.39997989]
[1767119291252,0.30053453,124.34,124.22,120.34123059]
[1767119291253,5.32,124.33,124.23,3.49224207]
[1767119292158,0.00138235,124.29,124.27,0.05931327]
[1767119292458,5.28,124.35,124.27,3.55155534]
[1767119292756,117.9637,124.37,124.27,3.49224207]
[1767119292952,7.2445,124.36,124.29,3.49224207]
[1767119293143,5.28,124.37,124.3,5.02]
[1767119293348,213.006,124.39,124.32,5.02]
[1767119293544,0.05870033,124.37,124.34,0.05152322]
[1767119294354,0.05870033,124.37,124.34,5.07152322]
[1767119294553,5.24,124.4,124.34,5.07152322]
[1767119294758,100.34,124.42,124.34,8.56376529]
[1767119294958,100.34,124.42,124.35,5.02]
[1767119295655,107.581,124.42,124.37,0.05941677]
[1767119295860,0.05622364,124.4,124.37,0.05941677]
[1767119297061,0.05622364,124.4,124.37,5.02941677]
[1767119297262,12.4496,124.44,124.37,5.02941677]
[1767119297559,107.5296,124.44,124.37,5.02941677]
[1767119298257,0.05754551,124.42,124.37,5.02941677]
[1767119301260,16.01034207,124.47,124.37,5.02941677]
[1767119301467,16.01034207,124.47,124.37,4.97]
[1767119301857,111.07034207,124.47,124.37,4.97]
[1767119302259,0.05415866,124.43,124.41,0.0556432]
[1767119310171,0.00415866,124.43,124.41,5.0256432]
[1767119319972,7.239,124.45,124.41,5.0256432]
[1767119321174,0.06146317,124.44,124.41,5.0256432]
[1767119321377,0.00146317,124.44,124.41,5.0256432]
[1767119331584,5.18,124.49,124.42,5.73]
[1767119331883,2.23541899,124.5,124.43,5.73]
[1767119332585,7.28863411,124.48,124.45,0.06069848]
[1767119338691,9.5240531,124.48,124.45,0.06069848]
[1767119341890,7.28863411,124.48,124.45,0.06069848]
[1767119343195,5.18,124.46,124.41,5.73]
[1767119344200,0.05359851,124.45,124.42,0.05966373]
[1767119346402,0.05359851,124.45,124.42,5.55966373]
[1767119346607,5.45,124.5,124.44,5.5]
[1767119347606,0.05853408,124.48,124.46,0.05246684]
[1767119347806,5.45,124.52,124.46,5.55246684]
[1767119348007,5.45,124.52,124.46,7.78788583]
[1767119348903,5.45,124.52,124.47,5.5]
[1767119349102,5.45,124.54,124.49,5.5]
[1767119349310,5.45,124.54,124.5,0.05498217]
[1767119349501,7.68541899,124.54,124.5,0.05498217]
[1767119350807,14.91921899,124.54,124.5,0.05498217]
[1767119351813,5.45,124.52,124.47,5.5]
[1767119352702,0.05498217,124.51,124.48,0.05775679]
[1767119353404,0.05498217,124.51,124.48,5.55775679]
[1767119357113,2.29040116,124.51,124.48,0.05775679]
[1767119358713,7.83541899,124.5,124.44,5.68]
[1767119359917,0.05301382,124.48,124.46,0.05442201]
[1767119363217,0.00301382,124.48,124.46,5.73442201]
[1767119364721,0.00301382,124.48,124.46,12.97252201]
[1767119368121,0.00301382,124.48,124.46,5.73442201]
[1767119395548,207.4977,124.55,124.46,5.73442201]
[1767119395549,13.3041,124.54,124.47,5.91]
[1767119395749,13.3041,124.54,124.48,5.91]
[1767119396348,6.07,124.52,124.46,5.91]
[1767119396542,0.05739683,124.5,124.48,0.06089609]
[1767119400449,0.05739683,124.5,124.46,5.91]
[1767119401454,0.05739683,124.5,124.47,0.05156181]
[1767119403658,7.2348,124.52,124.47,6.35156181]
[1767119404050,13.0442,124.53,124.47,6.35156181]
[1767119404250,5.81,124.53,124.47,6.35156181]
[1767119404448,5.81,124.53,124.48,6.3]
[1767119404648,0.05965122,124.52,124.48,6.3]
[1767119408654,7.2336,124.54,124.48,6.3]
[1767119409656,7.2336,124.54,124.5,0.05153142]
[1767119410360,13.0443,124.53,124.5,0.05153142]
[1767119410855,7.2354,124.51,124.45,7.53383059]
[1767119411061,5.81,124.5,124.44,6.3]
[1767119411762,0.0551046,124.48,124.46,0.05405487]
[1767119417755,108.5858,124.51,124.46,6.27405487]
[1767119419568,6.37,124.5,124.46,0.05405487]
[1767119419864,6.37,124.48,124.42,6.22]
[1767119420764,0.05405487,124.46,124.44,0.06055644]
[1767119423366,0.00405487,124.46,124.44,6.28055644]
[1767119423769,108.586,124.5,124.44,6.28055644]
[1767119424275,101.35,124.5,124.44,6.28055644]
[1767119424477,101.35,124.52,124.45,8.45296574]
[1767119424675,101.35,124.52,124.46,6.22]
[1767119424876,101.35,124.52,124.48,0.05088693]
[1767119429170,6.37,124.52,124.48,0.05088693]
[1767119429370,6.37,124.52,124.48,0.00088693]
[1767119429564,6.37,124.51,124.44,6.22]
[1767119429962,8.60296574,124.5,124.44,6.22]
[1767119430567,0.05088693,124.48,124.46,0.05405054]
[1767119431562,0.05088693,124.48,124.46,0.00405054]
[1767119437980,0.00088693,124.48,124.46,6.22405054]
[1767119443482,0.00088693,124.48,124.46,0.00405054]
[1767119460105,0.00088693,124.48,124.46,6.42405054]
[1767119460300,8.60296574,124.51,124.46,13.66235054]
[1767119461004,7.2341,124.54,124.47,6.42]
[1767119461205,8.47296574,124.52,124.47,6.42]
[1767119461408,8.52296574,124.52,124.49,0.06087107]
[1767119462406,6.24,124.51,124.49,0.06087107]
[1767119463908,8.47296574,124.51,124.49,0.06087107]
[1767119464408,8.47296574,124.51,124.49,0.00087107]
[1767119464609,8.47296574,124.51,124.47,6.42]
[1767119465500,8.47296574,124.51,124.48,0.06043222]
[1767119469211,6.24,124.51,124.48,0.06043222]
[1767119469408,8.47296574,124.51,124.48,0.06043222]
[1767119470312,6.24,124.5,124.44,7.2394]
[1767119470517,8.47296574,124.49,124.44,13.6594]
[1767119470719,8.47296574,124.49,124.45,6.42]
[1767119471321,0.0606997,124.48,124.46,0.05941474]
[1767119496326,13.7456,124.51,124.46,0.05941474]
[1767119496327,6.51,124.53,124.47,6.31]
[1767119497235,0.05175996,124.51,124.49,0.06081508]
[1767119499332,6.51,124.55,124.49,6.37081508]
[1767119500244,6.51,124.54,124.49,0.06081508]
[1767119500434,7.2332,124.55,124.49,0.06081508]
[1767119500435,6.51,124.52,124.49,0.06081508]
[1767119506033,6.51,124.52,124.47,6.31]
[1767119507039,6.51,124.52,124.48,0.06160097]
[1767119510844,13.7449,124.52,124.48,0.06160097]
[1767119511140,6.58,124.51,124.48,0.06160097]
[1767119513837,6.58,124.5,124.48,0.00160097]
[1767119514847,6.63774857,124.5,124.48,0.00160097]
[1767119518549,13.87384857,124.5,124.48,0.00160097]
[1767119519453,6.63774857,124.5,124.48,0.00160097]
[1767119527046,6.07,124.48,124.41,6.56]
[1767119527252,6.07,124.47,124.41,6.56]
[1767119527559,6.07,124.47,124.39,6.56]
[1767119527755,6.07,124.45,124.37,6.56]
[1767119528056,0.06149261,124.42,124.4,0.05851379]
[1767119536459,0.00149261,124.42,124.4,6.06851379]
[1767119537557,0.00149261,124.42,124.4,0.05851379]
[1767119541470,0.00149261,124.42,124.4,6.06851379]
[1767119546180,6.22,124.45,124.4,6.06851379]
[1767119547186,0.05540097,124.44,124.4,6.06851379]
[1767119549985,6.27540097,124.44,124.4,0.05851379]
[1767119550191,8.51119331,124.44,124.4,0.05851379]
[1767119550586,2.23579234,124.43,124.4,0.05851379]
[1767119551390,15.75069331,124.44,124.4,0.05851379]
[1767119553590,13.51490097,124.44,124.4,0.05851379]
[1767119555301,6.27540097,124.44,124.4,0.05851379]
[1767119555791,6.27540097,124.44,124.4,6.06851379]
[1767119555792,0.05540097,124.44,124.4,6.06851379]
[1767119556999,103.47579234,124.48,124.41,6.01]
[1767119557193,8.45579234,124.48,124.41,8.24579234]
[1767119557393,103.47579234,124.48,124.42,6.01]
[1767119557799,103.47579234,124.48,124.43,6.01]
[1767119557996,0.0582343,124.47,124.44,6.06108945]
[1767119558200,6.22,124.5,124.45,6.01]
[1767119558501,8.45579234,124.5,124.45,6.01]
[1767119559202,6.22,124.5,124.46,0.05467825]
[1767119562201,95.02,124.51,124.46,0.05467825]
[1767119562701,8.45579234,124.52,124.46,0.05467825]
[1767119562899,103.47579234,124.52,124.46,0.05467825]
[1767119563208,95.02,124.52,124.47,6.01]
[1767119563600,101.24,124.52,124.47,6.01]
[1767119565308,103.47579234,124.52,124.47,6.01]
[1767119566494,101.24,124.52,124.47,6.01]
[1767119566696,103.47579234,124.52,124.47,6.01]
[1767119567513,101.24,124.52,124.47,6.01]
[1767119568209,101.24,124.52,124.46,0.05467825]
[1767119568210,5.98,124.51,124.46,0.05467825]
[1767119570406,13.2157,124.51,124.46,0.05467825]
[1767119572310,5.98,124.51,124.46,0.05467825]
[1767119582115,5.98,124.51,124.46,7.29287825]
[1767119585322,5.98,124.51,124.46,0.05467825]
[1767119586818,8.21579234,124.51,124.46,0.05467825]
[1767119587919,8.21579234,124.51,124.46,6.65467825]
[1767119588721,5.98,124.51,124.46,6.65467825]
[1767119588922,94.98,124.52,124.47,6.6]
[1767119589419,101.04,124.52,124.47,6.6]
[1767119597134,6.06,124.52,124.47,6.6]
[1767119597340,101.04,124.52,124.47,6.6]
[1767119598941,6.06,124.52,124.47,6.6]
[1767119607646,6.6,124.5,124.46,0.05467825]
[1767119619562,112.5002,124.57,124.46,6.08467825]
[1767119619563,14.81912425,124.57,124.46,6.08467825]
[1767119619852,3.48980255,124.55,124.5,0.05461852]
[1767119620055,0.06022409,124.54,124.48,6.03]
[1767119621051,0.06022409,124.54,124.5,0.0578457]
[1767119621649,1.56,124.53,124.5,0.0578457]
[1767119622258,1.56,124.53,124.48,13.267]
[1767119622463,1.5,124.52,124.44,13.55808859]
[1767119622656,1.5,124.5,124.43,6.03]
[1767119623357,0.05619544,124.48,124.45,0.05374329]
[1767119626559,1.69619544,124.48,124.45,0.00374329]
[1767119630158,1.69619544,124.48,124.41,94.96]
[1767119630355,1.69619544,124.48,124.4,13.9713]
[1767119630558,1.64,124.48,124.4,13.9713]
[1767119631067,0.05744133,124.45,124.43,0.05542182]
[1767119645370,2.69,124.48,124.43,7.10542182]
[1767119646472,0.05597426,124.47,124.43,14.34542182]
[1767119646774,0.05597426,124.47,124.43,7.10542182]
[1767119651867,0.05597426,124.47,124.44,7.05]
[1767119652072,3.08,124.51,124.45,7.05]
[1767119652471,3.08,124.51,124.43,7.05]
[1767119653079,0.05566751,124.48,124.46,0.05935135]
[1767119658890,0.05566751,124.48,124.43,7.05]
[1767119658891,3.47566751,124.48,124.43,7.05]
[1767119659088,3.47566751,124.48,124.41,14.0506]
[1767119659484,3.36,124.47,124.41,6.81]
[1767119659881,0.05224492,124.45,124.43,0.05448347]
[1767119679114,0.00224492,124.45,124.43,6.86448347]
[1767119679815,4.15,124.48,124.43,9.09927927]
[1767119680911,0.05534477,124.47,124.43,9.09927927]
[1767119684113,0.05534477,124.47,124.44,6.81]
[1767119685218,4.31,124.5,124.44,6.81]
[1767119685620,11.546,124.5,124.44,6.81]
[1767119686319,11.546,124.5,124.46,0.05666978]
[1767119690517,4.31,124.5,124.46,0.05666978]
[1767119700029,4.75,124.49,124.43,7.99]
[1767119701031,0.05959556,124.47,124.45,0.0521618]
[1767119723755,5.3,124.51,124.45,8.3221618]
[1767119723951,12.5953,124.52,124.47,8.27]
[1767119724145,5.36,124.51,124.47,10.5047958]
[1767119724546,5.36,124.51,124.47,8.27]
[1767119724958,5.36,124.51,124.48,0.06086975]
[1767119729553,5.36,124.51,124.48,0.00086975]
[1767119730560,5.42137291,124.51,124.48,0.00086975]
[1767119731062,5.42137291,124.51,124.44,8.27]
[1767119732060,5.42137291,124.51,124.46,0.05628088]
[1767119732563,5.46,124.49,124.46,0.05628088]
[1767119732760,5.46,124.49,124.44,8.27]
[1767119733754,0.05950739,124.48,124.45,0.06127439]
[1767119735367,0.05950739,124.48,124.45,8.33127439]
[1767119736167,0.05950739,124.48,124.45,0.06127439]
[1767119740870,5.59950739,124.48,124.45,0.06127439]
[1767119742772,5.59950739,124.48,124.41,8.27]
[1767119742964,5.51,124.47,124.41,8.27]
[1767119743170,5.51,124.47,124.39,15.79621333]
[1767119743771,0.06144025,124.44,124.42,0.05894287]
[1767119744876,5.60144025,124.44,124.37,8.27]
[1767119745073,5.60144025,124.44,124.35,5.73188985]
[1767119745074,5.48,124.43,124.35,21.52810318]
[1767119745373,5.48,124.43,124.35,14.00188985]
[1767119745970,0.06159681,124.4,124.38,0.05069169]
[1767119750285,5.57,124.44,124.38,8.80069169]
[1767119750774,5.65,124.49,124.4,8.75]
[1767119751177,0.05896028,124.46,124.43,0.05875566]
[1767119760005,0.05896028,124.46,124.43,8.12875566]
[1767119760204,7.2374,124.48,124.43,8.12875566]
[1767119760708,7.2378,124.47,124.43,8.12875566]
[1767119760905,13.1078,124.47,124.43,0.05875566]
[1767119761210,5.92469523,124.46,124.43,0.05875566]
[1767119761399,5.92469523,124.46,124.41,8.07]
[1767119761700,13.16309523,124.46,124.41,8.07]
[1767119762408,13.16309523,124.46,124.42,0.05118585]
[1767119763307,5.92469523,124.46,124.42,0.05118585]
[1767119763805,5.92469523,124.46,124.42,8.12118585]
[1767119763806,0.05469523,124.46,124.42,8.12118585]
[1767119764503,8.72,124.51,124.44,8.07]
[1767119764702,3.48944342,124.5,124.4,8.07]
[1767119764899,8.72,124.49,124.4,8.07]
[1767119765500,0.05478813,124.46,124.43,0.05557751]
[1767119776919,8.09478813,124.46,124.43,0.05557751]
[1767119777116,8.09478813,124.46,124.41,8.07]
[1767119777320,8.09478813,124.46,124.39,8.66]
[1767119777524,8.04,124.46,124.39,8.66]
[1767119778214,0.05104316,124.44,124.41,0.05218849]
[1767119786036,0.05104316,124.44,124.41,8.71218849]
[1767119786240,0.00104316,124.44,124.41,8.71218849]
[1767119786529,8.04,124.48,124.41,8.71218849]
[1767119786728,14.4664,124.55,124.41,8.71218849]
[1767119786729,8.04,124.51,124.43,8.66]
[1767119787122,116.00144342,124.56,124.43,8.66]
[1767119787123,8.04,124.6,124.52,8.66]
[1767119787323,8.04,124.6,124.55,0.05765159]
[1767119787525,8.04,124.6,124.55,8.71765159]
[1767119787724,3.48944342,124.65,124.55,8.71765159]
[1767119787725,8.04,124.64,124.55,8.71765159]
[1767119787930,8.04,124.64,124.55,8.66]
[1767119788329,0.0589968,124.61,124.58,0.05259178]
[1767119788733,8.0989968,124.61,124.55,8.66]
[1767119789625,8.0989968,124.61,124.57,0.0562233]
[1767119795233,2.22953725,124.67,124.58,10.88953725]
[1767119795435,25.91739936,124.67,124.58,10.88953725]
[1767119796126,25.91739936,124.67,124.61,0.0544969]
[1767119796127,0.05996573,124.64,124.61,0.0544969]
[1767119797626,0.05996573,124.64,124.62,2.22953725]
[1767119797828,8.04,124.66,124.62,2.22953725]
[1767119800128,8.04,124.66,124.61,0.0544969]
[1767119800335,8.04,124.66,124.61,2.28403415]
[1767119802143,8.04,124.66,124.61,10.94403415]
[1767119803835,8.04,124.66,124.61,0.0544969]
[1767119808143,7.98,124.68,124.61,8.4744969]
[1767119808343,7.98,124.68,124.62,2.22953725]
[1767119808545,7.98,124.68,124.64,0.05963855]
[1767119809748,7.98,124.68,124.64,2.2891758]
[1767119810651,7.98,124.71,124.64,2.2891758]
[1767119810852,7.98,124.71,124.64,10.7091758]
[1767119819948,7.98,124.71,124.65,8.44]
[1767119820148,7.98,124.71,124.67,0.05693823]
[1767119822258,8.18,124.73,124.67,0.05693823]
[1767119823152,15.4017,124.75,124.69,8.44]
[1767119823358,15.4017,124.75,124.71,0.00486502]
[1767119823359,8.18,124.74,124.71,0.00486502]
[1767119824258,8.23794076,124.74,124.71,0.00486502]
[1767119828162,0.05794076,124.74,124.71,0.00486502]
[1767119828551,0.05794076,124.74,124.71,2.23440227]
[1767119828754,0.05794076,124.74,124.71,0.00486502]
[1767119832859,15.3999,124.78,124.71,8.44486502]
[1767119833048,15.3999,124.78,124.72,2.22953725]
[1767119833464,8.18,124.78,124.72,8.44]
[1767119833959,8.18,124.78,124.74,0.05169526]
[1767119840663,9.44883725,124.79,124.74,0.05169526]
[1767119840855,8.5,124.79,124.74,0.05169526]
[1767119844773,17.94873725,124.79,124.74,0.05169526]
[1767119844963,8.5,124.78,124.74,0.00169526]
[1767119845668,10.72953725,124.77,124.74,0.00169526]
[1767119845970,10.78115883,124.77,124.74,0.00169526]
[1767119847568,8.5,124.74,124.67,2.22953725]
[1767119847767,2.22953725,124.75,124.66,7.97]
[1767119847768,8.5,124.72,124.66,7.97]
[1767119848460,8.55338178,124.7,124.68,0.0034376]
[1767119848767,8.55338178,124.7,124.64,7.97]
[1767119849670,15.77788178,124.7,124.66,0.05109895]
[1767119851575,18.00741903,124.7,124.66,0.05109895]
[1767119852474,15.77788178,124.7,124.66,0.05109895]
[1767119864384,8.55338178,124.7,124.66,0.05109895]
[1767119865991,0.05338178,124.7,124.66,8.02109895]
[1767119870992,8.80338178,124.7,124.66,0.05109895]
[1767119881193,0.00338178,124.7,124.66,8.66109895]
[1767119881985,8.54338178,124.7,124.66,0.05109895]
[1767119888303,15.76778178,124.7,124.66,0.05109895]
[1767119888608,0.00338178,124.7,124.66,8.66109895]
[1767119890509,8.54,124.69,124.63,94.82]
[1767119890695,8.54,124.69,124.63,103.43]
[1767119891610,0.05217733,124.67,124.65,0.05708699]
[1767119901910,8.7,124.7,124.65,8.32708699]
[1767119902817,0.05793496,124.69,124.65,8.32708699]
[1767119912531,0.05793496,124.69,124.65,10.55350682]
[1767119918341,15.98293496,124.69,124.65,0.05708699]
[1767119918530,8.7,124.68,124.65,0.05708699]
[1767119918844,7.28293496,124.69,124.65,0.05708699]
[1767119919036,0.05793496,124.69,124.65,0.05708699]
[1767119922245,0.05793496,124.69,124.65,10.55350682]
[1767119932656,8.46793496,124.69,124.65,0.05708699]
[1767119932855,8.46793496,124.69,124.63,8.23]
[1767119933652,8.41,124.67,124.61,10.45641983]
[1767119933861,0.05298927,124.65,124.61,10.45641983]
[1767119934564,0.05298927,124.65,124.61,8.23]
[1767119934750,0.05298927,124.65,124.62,0.05295995]
[1767119939157,15.75038927,124.65,124.62,0.05295995]
[1767119939355,15.75038927,124.65,124.59,10.73641983]
[1767119940257,15.6979,124.64,124.61,0.05904342]
[1767119940460,15.6979,124.64,124.59,8.51]
[1767119940659,8.47,124.63,124.57,10.73641983]
[1767119941267,15.6985,124.63,124.57,10.73641983]
[1767119941460,0.054486,124.61,124.59,0.05776782]
[1767119960281,0.004486,124.61,124.59,8.36776782]
[1767120000601,0.004486,124.61,124.59,0.05776782]
[1767120000796,0.004486,124.61,124.57,15.39084716]
[1767120001299,0.004486,124.61,124.58,7.88]
[1767120001893,0.004486,124.61,124.58,7.93393815]
[1767120040149,0.004486,124.61,124.58,10.16302111]
[1767120040346,0.004486,124.61,124.59,8.12]
[1767120076873,7.57,124.65,124.59,8.12]
[1767120076874,14.7973,124.65,124.59,8.12]
[1767120077764,14.7973,124.65,124.59,10.34908296]
[1767120077975,0.05313951,124.63,124.61,0.05673811]
[1767120087585,0.05313951,124.63,124.61,8.05673811]
[1767120088784,0.00313951,124.63,124.61,8.05673811]
[1767120098089,0.00313951,124.63,124.61,0.05673811]
[1767120113204,7.39313951,124.63,124.59,8.0]
[1767120113608,0.00313951,124.63,124.59,8.0]
[1767120114317,0.00313951,124.63,124.6,0.05337808]
[1767120119119,0.00313951,124.63,124.6,7.73337808]
[1767120120719,0.00313951,124.63,124.6,0.05337808]
[1767120120920,3.48149007,124.61,124.56,7.68]
[1767120121117,3.48149007,124.61,124.54,7.68]
[1767120121118,7.5,124.59,124.54,7.68]
[1767120121324,112.4632,124.61,124.48,3.48149007]
[1767120121325,10.98149007,124.58,124.5,7.68]
[1767120122026,10.98149007,124.58,124.53,7.73960941]
[1767120122630,18.21289007,124.58,124.53,7.73960941]
[1767120122918,0.0572059,124.57,124.53,7.73960941]
[1767120127524,7.2894059,124.57,124.48,3.48149007]
[1767120127724,7.2322,124.57,124.48,3.48149007]
[1767120128531,0.0006643,124.54,124.51,0.05794622]
[1767120129521,0.0006643,124.54,124.52,7.68]
[1767120156853,0.0006643,124.54,124.51,0.05794622]
[1767120167366,0.0006643,124.54,124.51,7.92794622]
[1767120180277,10.08289662,124.54,124.48,7.4773615]
[1767120180584,10.08289662,124.54,124.46,9.70959382]
[1767120180884,10.08223232,124.54,124.46,9.70959382]
[1767120181082,10.08223232,124.54,124.46,2.23223232]
[1767120181272,7.2343,124.53,124.49,0.05559268]
[1767120181585,0.05533027,124.51,124.49,0.05559268]
[1767120181977,7.2343,124.53,124.49,0.05559268]
[1767120182684,7.2343,124.53,124.49,7.82559268]
[1767120183179,0.05136507,124.52,124.49,7.82559268]
[1767120185380,9.46763232,124.51,124.47,7.77]
[1767120186184,7.2354,124.51,124.47,7.77]
[1767120186480,0.05174838,124.5,124.48,0.05477024]
[1767120188374,0.00174838,124.5,124.48,7.82477024]
[1767120207497,2.23223232,124.54,124.48,7.82477024]
[1767120207689,2.23223232,124.56,124.48,2.28700256]
[1767120207886,2.23223232,124.56,124.48,2.23223232]
[1767120208494,0.05453014,124.53,124.51,0.05989491]
[1767120208696,0.00453014,124.53,124.51,0.05989491]
[1767120222199,7.34,124.57,124.51,0.05989491]
[1767120223004,0.0519635,124.55,124.51,0.05989491]
[1767120230212,0.0019635,124.55,124.51,0.05989491]
[1767120240517,0.0019635,124.55,124.51,7.29519491]
[1767120245236,0.0019635,124.55,124.52,7.2348]
[1767120245426,0.0019635,124.55,124.51,0.05989491]
[1767120246533,0.0019635,124.55,124.51,7.29529491]
[1767120250641,0.0019635,124.55,124.51,0.05989491]
[1767120263552,6.5019635,124.55,124.51,0.05989491]
[1767120265356,13.7350635,124.55,124.51,0.05989491]
[1767120269252,6.5,124.54,124.51,0.05989491]
[1767120283560,112.4461,124.63,124.51,4.25155523]
[1767120283765,2.23166032,124.59,124.51,4.19166032]
[1767120284059,2.23166032,124.61,124.51,4.19166032]
[1767120284564,9.46126032,124.61,124.53,7.2341]
[1767120284765,0.05790475,124.57,124.53,7.2341]
[1767120285352,0.05790475,124.57,124.51,11.42686032]
[1767120285567,6.55790475,124.57,124.51,11.42686032]
[1767120285759,6.55790475,124.57,124.53,0.06148019]
[1767120289770,6.55790475,124.57,124.53,2.29314051]
[1767120297271,6.55790475,124.57,124.53,0.06148019]
[1767120297476,6.18,124.56,124.49,11.37902182]